fUST/lending_fUST_20250120
["ID","MTS","AMOUNT","RATE_DAILY","PERIOD"]
[349695717,1737381034139,-500.0,0.00021917,3]
[349695718,1737381034149,-500.0,0.00021917,3]
[349695719,1737381034159,-500.0,0.00021917,3]
[349695720,1737381034169,-396.41569769,0.00021917,3]
[349695721,1737381034179,-500.0,0.00021917,3]
[349695722,1737381034189,-500.0,0.00021917,3]
[349695723,1737381034202,-500.0,0.00021917,3]
[349695724,1737381034212,-500.0,0.00021917,3]
[349695725,1737381034222,-516.16,0.00021917,3]
[349695726,1737381034232,-500.0,0.00021917,3]
[349695727,1737381034241,-500.0,0.00021917,3]
[349695728,1737381034251,-500.0,0.00021917,3]
[349695729,1737381034261,-500.0,0.00021989,3]
[349695730,1737381034271,-500.0,0.00021989,3]
[349695731,1737381034280,-700.0,0.00022,4]
[349695732,1737381034290,-500.0,0.00022053,3]
[349695733,1737381034299,-500.0,0.00022053,3]
[349695734,1737381034310,-500.0,0.00022053,3]
[349695735,1737381034320,-500.0,0.00022054,3]
[349695736,1737381034330,-500.0,0.00022054,3]
[349695737,1737381034339,-500.0,0.00022054,3]
[349695738,1737381034349,-500.0,0.00022054,3]
[349695739,1737381034359,-500.0,0.00022054,3]
[349695740,1737381034368,-500.0,0.00022054,3]
[349695741,1737381034377,-500.0,0.00022054,3]
[349695742,1737381034387,-609.30933581,0.00022054,3]
[349695743,1737381034396,-532.48,0.00022054,3]
[349695744,1737381034406,-500.0,0.00022054,3]
[349695745,1737381034416,-500.0,0.00022054,3]
[349695746,1737381034425,-500.0,0.00022054,3]
[349695747,1737381034435,-500.0,0.00022054,3]
[349695748,1737381034445,-500.0,0.00022054,3]
[349695749,1737381034458,-500.0,0.00022054,3]
[349695750,1737381034467,-500.0,0.00022054,3]
[349695751,1737381034477,-324.98261994,0.00022054,3]
[349695752,1737381034486,-500.0,0.00022054,3]
[349695753,1737381034496,-500.0,0.00022054,3]
[349695754,1737381034505,-500.0,0.00022054,3]
[349695755,1737381034514,-500.0,0.00022054,2]
[349695756,1737381034523,-500.0,0.00022054,3]
[349695757,1737381034532,-500.0,0.00022054,3]
[349695758,1737381034542,-518.81,0.00022054,3]
[349695759,1737381034551,-547.29,0.00022054,3]
[349695760,1737381034560,-500.0,0.00022054,3]
[349695761,1737381034570,-500.0,0.00022054,3]
[349695762,1737381034579,-500.0,0.00022054,3]
[349695763,1737381034588,-500.0,0.00022054,3]
[349695764,1737381034597,-500.0,0.00022054,3]
[349695765,1737381034607,-500.0,0.00022054,3]
[349695766,1737381034616,-500.0,0.00022054,3]
[349695767,1737381034626,-395.06749111,0.00022054,3]
[349695768,1737381034639,-104.93250889,0.00022054,3]
[349695769,1737381034649,-500.0,0.00022054,3]
[349695770,1737381034658,-500.0,0.00022054,3]
[349695771,1737381034667,-500.0,0.00022054,3]
[349695772,1737381034677,-500.0,0.00022054,3]
[349695773,1737381034686,-500.0,0.00022054,3]
[349695774,1737381034695,-500.0,0.00022054,3]
[349695775,1737381034708,-500.0,0.00022054,3]
[349695776,1737381034718,-500.0,0.00022054,3]
[349695777,1737381034727,-500.0,0.00022054,3]
[349695778,1737381034737,-500.0,0.00022054,3]
[349695779,1737381034746,-500.0,0.00022054,3]
[349695780,1737381034755,-500.0,0.00022054,3]
[349695781,1737381034765,-500.0,0.00022054,3]
[349695782,1737381034774,-500.0,0.00022054,3]
[349695783,1737381034784,-500.0,0.00022054,3]
[349695784,1737381034793,-500.0,0.00022054,3]
[349695785,1737381034803,-500.0,0.00022054,3]
[349695786,1737381034812,-500.0,0.00022054,3]
[349695787,1737381034822,-646.32,0.00022054,3]
[349695788,1737381034831,-166.511124,0.00022174,2]
[349695789,1737381034840,-500.0,0.00022189,3]
[349695790,1737381034849,-500.0,0.00022189,3]
[349695791,1737381034858,-500.0,0.0002219,3]
[349695792,1737381034867,-500.0,0.00022191,3]
[349695793,1737381034877,-449.24958018,0.00022191,3]
[349695794,1737381034886,-530.97746241,0.00022191,3]
[349695795,1737381034895,-500.0,0.00022191,3]
[349695796,1737381034904,-500.0,0.00022191,3]
[349695797,1737381034913,-573.25,0.00022191,3]
[349695798,1737381034922,-500.0,0.00022191,3]
[349695799,1737381034932,-500.0,0.00022191,3]
[349695800,1737381034942,-500.0,0.00022191,3]
[349695801,1737381034953,-303.8,0.00022191,3]
[349695802,1737381034963,-422.15304565,0.00022191,3]
[349695803,1737381034972,-500.0,0.00022191,3]
[349695804,1737381034982,-284.34,0.00022191,3]
[349695805,1737381034991,-547.29,0.00022191,3]
[349695806,1737381035000,-500.0,0.00022191,3]
[349695807,1737381035010,-500.0,0.00022191,3]
[349695808,1737381035019,-157.22,0.00022191,3]
[349695809,1737381035028,-500.0,0.00022191,3]
[349695810,1737381035037,-500.0,0.00022191,3]
[349695811,1737381035046,-500.0,0.00022191,3]
[349695812,1737381035055,-500.0,0.00022191,3]
[349695813,1737381035067,-500.0,0.00022191,3]
[349695814,1737381035076,-500.0,0.00022191,3]
[349695815,1737381035085,-500.0,0.00022191,3]
[349695816,1737381035097,-639.44,0.00022191,3]
[349695817,1737381035107,-500.0,0.00022191,3]
[349695818,1737381035116,-500.85,0.00022191,3]
[349695819,1737381035125,-500.0,0.00022191,3]
[349695820,1737381035134,-500.0,0.00022191,3]
[349695821,1737381035144,-500.0,0.00022191,3]
[349695822,1737381035153,-500.0,0.00022191,3]
[349695823,1737381035162,-500.0,0.00022191,3]
[349695824,1737381035171,-500.0,0.00022191,3]
[349695825,1737381035182,-500.0,0.00022191,3]
[349695826,1737381035192,-206.65900163,0.00022233,3]
[349695827,1737381035202,-500.0,0.00022328,3]
[349695828,1737381035211,-500.0,0.00022328,3]
[349695829,1737381035221,-547.29,0.00022328,3]
[349695830,1737381035229,-500.0,0.00022328,3]
[349695831,1737381035239,-500.0,0.00022328,3]
[349695832,1737381035249,-500.0,0.00022328,3]
[349695833,1737381035259,-500.0,0.00022328,3]
[349695834,1737381035269,-500.0,0.00022328,3]
[349695835,1737381035278,-500.0,0.00022328,3]
[349695836,1737381035288,-500.0,0.00022328,3]
[349695837,1737381035297,-155.433122,0.00022432,5]
[349695838,1737381035307,-500.0,0.00022464,3]
[349695839,1737381035318,-500.0,0.00022464,3]
[349695840,1737381035328,-500.0,0.00022464,3]
[349695841,1737381035337,-360.24220995,0.00022465,3]
[349695842,1737381035347,-547.29,0.00022465,3]
[349695843,1737381035356,-500.0,0.00022465,3]
[349695844,1737381035365,-500.0,0.00022465,3]
[349695845,1737381035375,-500.0,0.00022465,3]
[349695846,1737381035384,-500.0,0.00022465,3]
[349695847,1737381035393,-206.65900163,0.00022567,3]
[349695848,1737381035402,-547.29,0.00022602,3]
[349695849,1737381035412,-500.0,0.00022602,3]
[349695850,1737381035422,-523.23,0.00022602,3]
[349695851,1737381035431,-500.0,0.00022602,3]
[349695852,1737381035441,-500.0,0.00022602,3]
[349695853,1737381035452,-547.29,0.00022739,3]
[349695854,1737381035462,-228.8,0.00022739,3]
[349695855,1737381035471,-438.7,0.00022739,3]
[349695856,1737381035481,-500.0,0.00022739,3]
[349695857,1737381035490,-590.11,0.000228,2]
[349695858,1737381035499,-547.29,0.00022876,3]
[349695859,1737381035509,-500.0,0.00022876,3]
[349695860,1737381035518,-206.65900163,0.000229,3]
[349695861,1737381035527,-600.0,0.00023,5]
[349695862,1737381035537,-547.29,0.00023013,3]
[349695863,1737381035547,-500.0,0.00023013,3]
[349695864,1737381035557,-155.433122,0.0002303,15]
[349695865,1737381035566,-559.895,0.0002304,2]
[349695866,1737381035578,-263.83174449,0.0002315,3]
[349695867,1737381035598,-283.45825551,0.0002315,3]
[349695868,1737381035608,-500.0,0.0002315,3]
[349695869,1737381035617,-206.65900163,0.00023233,3]
[349695870,1737381035729,-547.29,0.00023287,3]
[349695871,1737381035739,-500.0,0.00023287,3]
[349695872,1737381035749,-547.29,0.00023424,3]
[349695873,1737381035758,-500.0,0.00023424,3]
[349695874,1737381035768,-500.0,0.00023498,3]
[349695875,1737381035777,-500.0,0.00023498,3]
[349695876,1737381035787,-500.0,0.00023498,3]
[349695877,1737381035796,-407.70959625,0.00023499,2]
[349695878,1737381035806,-500.0,0.00023499,2]
[349695879,1737381035816,-500.0,0.00023499,2]
[349695880,1737381035825,-500.0,0.00023499,2]
[349695881,1737381035834,-500.0,0.00023499,2]
[349695882,1737381035844,-500.0,0.00023499,2]
[349695883,1737381035853,-500.0,0.00023499,2]
[349695884,1737381035862,-500.0,0.00023499,2]
[349695885,1737381035871,-500.0,0.00023499,2]
[349695886,1737381035880,-500.0,0.00023499,2]
[349695887,1737381035889,-519.71476152,0.00023499,2]
[349695888,1737381035898,-500.0,0.00023499,2]
[349695889,1737381035907,-500.0,0.00023499,2]
[349695890,1737381035917,-338.41730245,0.00023499,2]
[349695891,1737381035926,-337.71647604,0.00023499,2]
[349695892,1737381035935,-389.03997622,0.00023499,2]
[349695893,1737381035944,-563.77123739,0.00023499,2]
[349695894,1737381035955,-500.0,0.00023499,2]
[349695895,1737381035964,-500.0,0.00023499,2]
[349695896,1737381035973,-500.0,0.00023499,2]
[349695897,1737381035982,-500.0,0.00023499,2]
[349695898,1737381035991,-500.0,0.00023499,2]
[349695899,1737381036000,-500.0,0.00023499,2]
[349695900,1737381036009,-585.53685063,0.00023499,2]
[349695901,1737381036018,-500.0,0.00023499,2]
[349695902,1737381036027,-500.0,0.00023499,2]
[349695903,1737381036036,-505.63400589,0.00023499,2]
[349695904,1737381036045,-500.0,0.00023499,2]
[349695905,1737381036054,-500.0,0.00023499,3]
[349695906,1737381036063,-500.0,0.00023499,3]
[349695907,1737381036072,-500.0,0.00023499,3]
[349695908,1737381036081,-500.0,0.00023499,3]
[349695909,1737381036091,-500.0,0.00023499,3]
[349695910,1737381036105,-500.0,0.00023499,3]
[349695911,1737381036114,-500.0,0.00023499,3]
[349695912,1737381036123,-500.0,0.00023499,3]
[349695913,1737381036133,-500.0,0.00023499,3]
[349695914,1737381036142,-460.8253987,0.00023499,3]
[349695915,1737381036155,-39.1746013,0.00023499,3]
[349695916,1737381036164,-500.0,0.00023499,3]
[349695917,1737381036176,-500.0,0.00023499,3]
[349695918,1737381036188,-500.0,0.00023499,3]
[349695919,1737381036198,-249.21630849,0.00023499,3]
[349695920,1737381036208,-500.0,0.00023499,3]
[349695921,1737381036218,-500.0,0.00023499,3]
[349695922,1737381036227,-500.0,0.00023499,3]
[349695923,1737381036235,-500.0,0.00023499,3]
[349695924,1737381036244,-500.0,0.00023499,3]
[349695925,1737381036254,-500.0,0.00023499,3]
[349695926,1737381036265,-500.0,0.00023499,3]
[349695927,1737381036275,-500.0,0.00023499,3]
[349695928,1737381036284,-500.0,0.00023499,3]
[349695929,1737381036293,-500.0,0.00023499,3]
[349695930,1737381036303,-500.0,0.00023499,3]
[349695931,1737381036312,-30585.87947753,0.000235,2]
[349695932,1737381036323,-1434.04914579,0.000235,2]
[349695982,1737381038774,-438.369,0.00023264,2]
[349695984,1737381038786,-629.73470119,0.00023264,2]
[349695991,1737381038844,-3225.9,0.00023264,2]
[349695993,1737381038855,-1778.50053095,0.00023264,2]
[349695995,1737381038864,-5384.4920317,0.000235,2]
[349695997,1737381038875,-1303.77948521,0.000235,2]
[349696066,1737381040971,-16583.45,0.000235,2]
[349696076,1737381041077,-53945.0,0.000235,2]
[349696135,1737381046756,-4734.06068593,0.00023265,2]
[349696137,1737381046767,-2295.68866576,0.00023265,2]
[349696139,1737381046775,-395.0,0.00023416,2]
[349696141,1737381046785,-3684.9610647,0.000235,2]
[349697343,1737381754340,166.5331,0.00013973,2]
[349697382,1737382236578,-2569.74559748,0.00017185,2]
[349697383,1737382236588,-680.85951477,0.00017359,2]
[349697384,1737382236600,-1888.88608271,0.00017359,2]
[349697385,1737382236610,-300.0,0.00018623,2]
[349697386,1737382236619,-500.0,0.00018624,2]
[349697387,1737382236629,-500.0,0.00018624,2]
[349697388,1737382236638,-500.0,0.00018624,2]
[349697389,1737382236647,-500.0,0.00018624,2]
[349697390,1737382236657,-405.85737448,0.00018624,2]
[349697392,1737382236666,-303.14549832,0.00019,2]
[349697393,1737382236676,-303.12427155,0.00019,2]
[349697394,1737382236686,-303.14549832,0.0001919,2]
[349697395,1737382236695,-303.12427155,0.0001919,2]
[349697396,1737382236704,-303.14549832,0.0001938,2]
[349697397,1737382236714,-303.12427155,0.0001938,2]
[349697398,1737382236724,-163.888223,0.00019388,2]
[349697399,1737382236733,-303.14549832,0.0001957,2]
[349697400,1737382236742,-303.12427155,0.0001957,2]
[349697401,1737382236751,-303.14549832,0.0001976,2]
[349697402,1737382236761,-303.12427155,0.0001976,2]
[349697403,1737382236770,-151.57577739,0.0001995,4]
[349697404,1737382236779,-151.61064442,0.0001995,4]
[349697405,1737382236789,-1495.0,0.0002,2]
[349697406,1737382236798,-420.0,0.00020307,2]
[349697407,1737382236808,-500.0,0.00020414,2]
[349697408,1737382236821,-12158.79642097,0.000215,2]
[349697409,1737382236831,-1495.0,0.000216,4]
[349697410,1737382236840,-500.0,0.00021917,3]
[349697411,1737382236850,-500.0,0.00021917,2]
[349697412,1737382236860,-500.0,0.00021917,3]
[349697413,1737382236870,-552.86160876,0.00021917,2]
[349697414,1737382236880,-500.0,0.00022054,2]
[349697415,1737382236889,-587.0,0.00022143,2]
[349697416,1737382236899,-500.0,0.00022191,2]
[349697417,1737382236909,-206.91,0.00022328,2]
[349697418,1737382236920,-500.0,0.00022738,2]
[349697419,1737382236930,-500.0,0.00022738,3]
[349697420,1737382236940,-500.0,0.00022738,3]
[349697421,1737382236950,-166.5331,0.00022759,2]
[349697422,1737382236960,-531.1,0.000228,2]
[349697423,1737382237110,-500.0,0.00022875,3]
[349697424,1737382237120,-398.12205789,0.00022875,3]
[349697425,1737382237130,-206.65900163,0.000229,3]
[349697426,1737382237140,-361.35,0.00022999,3]
[349697427,1737382237149,-29889.89262525,0.00023,2]
[349697428,1737382237159,-500.0,0.00023012,3]
[349697429,1737382237168,-536.689,0.0002304,2]
[349697430,1737382237178,-10000.0,0.0002305,2]
[349697431,1737382237188,-409.43061754,0.00023099,2]
[349697432,1737382237197,-168.85719572,0.00023099,2]
[349697433,1737382237207,-209.89333069,0.00023099,2]
[349697434,1737382237219,-287.28187229,0.00023099,2]
[349697435,1737382237227,-451.53013749,0.00023099,2]
[349697436,1737382237236,-177.493,0.00023099,2]
[349697437,1737382237246,-184.72,0.00023099,3]
[349697438,1737382237256,-499.0,0.00023099,2]
[349697439,1737382237265,-696.72689716,0.00023099,2]
[349697440,1737382237275,-696.72689716,0.00023099,2]
[349697442,1737382237284,-696.72689716,0.00023099,2]
[349697443,1737382237293,-696.72689716,0.00023099,2]
[349697444,1737382237302,-696.72689716,0.00023099,2]
[349697445,1737382237311,-696.72689716,0.00023099,2]
[349697446,1737382237320,-696.72689716,0.00023099,2]
[349697447,1737382237330,-696.72689716,0.00023099,2]
[349697449,1737382237339,-696.72689716,0.00023099,2]
[349697450,1737382237349,-696.72689716,0.00023099,2]
[349697451,1737382237360,-696.72689716,0.00023099,2]
[349697452,1737382237371,-696.72689716,0.00023099,2]
[349697453,1737382237381,-696.72689716,0.00023099,2]
[349697454,1737382237389,-696.72689716,0.00023099,2]
[349697455,1737382237398,-696.72689716,0.00023099,2]
[349697456,1737382237407,-696.72689716,0.00023099,2]
[349697457,1737382237417,-696.72689716,0.00023099,2]
[349697459,1737382237426,-696.72689716,0.00023099,2]
[349697461,1737382237435,-696.72689716,0.00023099,2]
[349697463,1737382237446,-696.72689716,0.00023099,2]
[349697465,1737382237460,-696.72689716,0.00023099,2]
[349697467,1737382237471,-696.72689716,0.00023099,2]
[349697469,1737382237481,-696.72689716,0.00023099,2]
[349697471,1737382237490,-696.72689716,0.00023099,2]
[349697473,1737382237500,-696.72689716,0.00023099,2]
[349697475,1737382237510,-696.72689716,0.00023099,2]
[349697477,1737382237519,-696.72689716,0.00023099,2]
[349697478,1737382237530,-696.72689716,0.00023099,2]
[349697480,1737382237539,-696.72689716,0.00023099,2]
[349697482,1737382237548,-696.72689716,0.00023099,2]
[349697484,1737382237558,-696.72689716,0.00023099,2]
[349697486,1737382237567,-696.72689716,0.00023099,2]
[349697487,1737382237577,-696.72689716,0.00023099,2]
[349697489,1737382237586,-696.72689716,0.00023099,2]
[349697490,1737382237596,-696.72689716,0.00023099,2]
[349697491,1737382237605,-696.72689716,0.00023099,2]
[349697492,1737382237616,-696.72689716,0.00023099,2]
[349697493,1737382237627,-696.72689716,0.00023099,2]
[349697494,1737382237638,-696.72689716,0.00023099,2]
[349697495,1737382237648,-696.72689716,0.00023099,2]
[349697496,1737382237657,-696.72689716,0.00023099,2]
[349697498,1737382237667,-696.72689716,0.00023099,2]
[349697500,1737382237677,-696.72689716,0.00023099,2]
[349697502,1737382237687,-696.72689716,0.00023099,2]
[349697504,1737382237696,-696.72689716,0.00023099,2]
[349697506,1737382237706,-696.72689716,0.00023099,2]
[349697508,1737382237716,-696.72689716,0.00023099,2]
[349697510,1737382237726,-696.72689716,0.00023099,2]
[349697512,1737382237735,-696.72689716,0.00023099,2]
[349697514,1737382237745,-696.72689716,0.00023099,2]
[349697516,1737382237754,-696.72689716,0.00023099,2]
[349697518,1737382237763,-696.72689716,0.00023099,2]
[349697520,1737382237773,-696.72689716,0.00023099,2]
[349697522,1737382237782,-696.72689716,0.00023099,2]
[349697524,1737382237792,-696.72689716,0.00023099,2]
[349697526,1737382237802,-696.72689716,0.00023099,2]
[349697528,1737382237811,-696.72689716,0.00023099,2]
[349697530,1737382237821,-696.72689716,0.00023099,2]
[349697532,1737382237831,-696.72689716,0.00023099,2]
[349697534,1737382237840,-696.72689716,0.00023099,2]
[349697536,1737382237850,-696.72689716,0.00023099,2]
[349697538,1737382237861,-696.72689716,0.00023099,2]
[349697540,1737382237871,-696.72689716,0.00023099,2]
[349697542,1737382237880,-696.72689716,0.00023099,2]
[349697544,1737382237890,-696.72689716,0.00023099,2]
[349697546,1737382237900,-696.72689716,0.00023099,2]
[349697548,1737382237910,-685.57926679,0.00023099,2]
[349697550,1737382237919,-685.57926679,0.00023099,2]
[349697552,1737382237928,-685.57926679,0.00023099,2]
[349697554,1737382237938,-685.57926679,0.00023099,2]
[349697556,1737382237948,-685.57926679,0.00023099,2]
[349697559,1737382237958,-685.57926679,0.00023099,2]
[349697560,1737382237967,-685.57926679,0.00023099,2]
[349697563,1737382237977,-685.57926679,0.00023099,2]
[349697565,1737382237987,-685.57926679,0.00023099,2]
[349697566,1737382237996,-685.57926679,0.00023099,2]
[349697568,1737382238005,-685.57926679,0.00023099,2]
[349697570,1737382238015,-685.57926679,0.00023099,2]
[349697573,1737382238025,-685.57926679,0.00023099,2]
[349697575,1737382238035,-685.57926679,0.00023099,2]
[349697577,1737382238045,-685.57926679,0.00023099,2]
[349697579,1737382238056,-685.57926679,0.00023099,2]
[349697581,1737382238066,-685.57926679,0.00023099,2]
[349697583,1737382238076,-685.57926679,0.00023099,2]
[349697585,1737382238086,-685.57926679,0.00023099,2]
[349697587,1737382238096,-685.57926679,0.00023099,2]
[349697589,1737382238106,-685.57926679,0.00023099,2]
[349697591,1737382238116,-685.57926679,0.00023099,2]
[349697593,1737382238126,-685.57926679,0.00023099,2]
[349697595,1737382238135,-685.57926679,0.00023099,2]
[349697597,1737382238145,-685.57926679,0.00023099,2]
[349697599,1737382238155,-19159.98778567,0.000231,5]
[349697601,1737382238166,-4365.58369913,0.000231,5]
[349697603,1737382238177,-916221.43013392,0.000231,15]
[349697605,1737382238192,-7508.790418,0.000231,15]
[349697610,1737382238228,-395.0,0.00022471,2]
[349697612,1737382238238,-4588.19606982,0.000231,15]
[349697614,1737382238250,-1722.3396068,0.000231,15]
[349697616,1737382238261,-1497.359927,0.000231,15]
[349697618,1737382238273,-12557.88734145,0.000231,15]
[349697786,1737382240073,-341.973,0.00017013,2]
[349697790,1737382240101,-1150.15,0.00017013,2]
[349697803,1737382240216,-1077.62259748,0.00017013,2]
[349697805,1737382240227,-4681.91325453,0.000231,15]
[349697807,1737382240239,-16207.72925544,0.000231,15]
[349697814,1737382240288,-46160.38793657,0.000231,15]
[349698082,1737382242838,-606.05059639,0.000231,15]
[349698086,1737382242864,-6869.79250098,0.000231,15]
[349698092,1737382243055,-1614.26250468,0.000231,15]
[349698399,1737382245973,-3330.9,0.000231,15]
[349699735,1737382707027,166.549012,0.00013973,2]
[349699789,1737383432691,-500.0,0.00018095,2]
[349699792,1737383432701,-500.0,0.00018278,2]
[349699794,1737383432711,-249.45451751,0.000189,2]
[349699796,1737383432724,-5408.0653693,0.00019662,2]
[349699798,1737383432734,-2214.38838155,0.0002,2]
[349699800,1737383432744,-500.0,0.00020414,2]
[349699802,1737383432753,-167.994604,0.00021132,2]
[349699804,1737383432763,-250.0,0.00021523,2]
[349699805,1737383432772,-300.0,0.00021773,2]
[349699807,1737383432782,-3327.680465,0.00021776,2]
[349699809,1737383432791,-500.0,0.00022606,2]
[349699812,1737383432801,-166.549012,0.00022759,2]
[349699813,1737383432811,-477.99,0.000228,2]
[349699815,1737383432824,-247.80377759,0.0002288,2]
[349699817,1737383432834,-10049.20838456,0.00023,5]
[349699819,1737383432844,-531.669,0.0002304,2]
[349699822,1737383432854,-153.881,0.0002305,2]
[349699823,1737383432863,-151.8587153,0.00023054,2]
[349699826,1737383432873,-551.45,0.00023098,3]
[349699829,1737383432882,-500.0,0.00023098,2]
[349699831,1737383432892,-500.0,0.00023098,3]
[349699833,1737383432901,-500.0,0.00023099,2]
[349699835,1737383432912,-500.0,0.00023099,2]
[349699837,1737383432921,-500.0,0.00023099,2]
[349699839,1737383432931,-500.0,0.00023099,2]
[349699841,1737383432940,-500.0,0.00023099,2]
[349699843,1737383432949,-500.0,0.00023099,2]
[349699845,1737383432959,-500.0,0.00023099,2]
[349699847,1737383432968,-496.90060877,0.00023099,2]
[349699849,1737383432981,-197.51313085,0.00023099,2]
[349699851,1737383432990,-500.0,0.00023099,2]
[349699853,1737383433002,-500.0,0.00023099,2]
[349699855,1737383433012,-464.81323868,0.00023099,2]
[349699857,1737383433022,-500.0,0.00023099,2]
[349699859,1737383433031,-650.85779233,0.00023099,2]
[349699861,1737383433042,-500.0,0.00023099,2]
[349699863,1737383433051,-500.0,0.00023099,2]
[349699865,1737383433061,-500.0,0.00023099,2]
[349699867,1737383433071,-500.0,0.00023099,2]
[349699869,1737383433080,-233.57282067,0.00023099,2]
[349699871,1737383433091,-500.0,0.00023099,2]
[349699873,1737383433100,-500.0,0.00023099,2]
[349699875,1737383433110,-500.0,0.00023099,2]
[349699877,1737383433120,-500.0,0.00023099,2]
[349699879,1737383433130,-601.4187818,0.00023099,2]
[349699881,1737383433141,-500.0,0.00023099,2]
[349699883,1737383433152,-500.0,0.00023099,2]
[349699885,1737383433162,-257.24833068,0.00023099,2]
[349699887,1737383433172,-500.0,0.00023099,2]
[349699889,1737383433182,-500.0,0.00023099,2]
[349699891,1737383433192,-250.0,0.00023099,2]
[349699893,1737383433202,-499.0,0.00023099,2]
[349699895,1737383433212,-183268.64045442,0.000231,15]
[349699897,1737383433225,-175.81566324,0.00023135,2]
[349699899,1737383433235,-500.0,0.00023235,2]
[349699901,1737383433245,-500.0,0.00023235,3]
[349699903,1737383433254,-1495.0,0.00023328,7]
[349699905,1737383433264,-500.0,0.00023372,2]
[349699907,1737383433273,-500.0,0.00023372,3]
[349699909,1737383433283,-2070.0,0.00023384,2]
[349699911,1737383433293,-536.0,0.00023384,2]
[349699913,1737383433303,-2311.0,0.00023384,2]
[349699915,1737383433313,-395.0,0.00023384,2]
[349699917,1737383433323,-92626.78343582,0.000235,2]
[349699919,1737383433333,-300.0,0.000235,10]
[349699921,1737383433343,-1142.03162893,0.000235,2]
[349699923,1737383433353,-500.0,0.00023509,2]
[349699925,1737383433363,-500.0,0.00023509,3]
[349699927,1737383433373,-1200.0,0.0002359,2]
[349699929,1737383433383,-500.0,0.00023646,2]
[349699931,1737383433392,-500.0,0.00023646,3]
[349699933,1737383433402,-420.0,0.00023665,2]
[349699935,1737383433411,-500.0,0.00023783,2]
[349699937,1737383433420,-500.0,0.00023783,3]
[349699939,1737383433430,-249.45451751,0.000239,2]
[349699941,1737383433441,-500.0,0.0002392,3]
[349699943,1737383433451,-500.0,0.00024057,3]
[349699945,1737383433462,-154.31,0.000241,31]
[349699947,1737383433478,-154.31,0.000241,31]
[349699949,1737383433489,-154.31,0.000241,31]
[349699951,1737383433498,-154.31,0.000241,31]
[349699953,1737383433509,-154.31,0.000241,31]
[349699955,1737383433519,-154.31,0.000241,31]
[349699957,1737383433529,-154.31,0.000241,31]
[349699959,1737383433539,-175.81566323,0.00024153,2]
[349699961,1737383433549,-500.0,0.00024194,3]
[349699963,1737383433559,-2000.0,0.000242,2]
[349699965,1737383433568,-500.0,0.00024246,2]
[349699966,1737383433575,-151.0,0.00024246,15]
[349699967,1737383433585,-286.60143228,0.00024249,2]
[349699968,1737383433595,-9579.99389284,0.0002425,5]
[349699969,1737383433604,-2182.79184957,0.0002425,5]
[349699970,1737383433614,-140067.30632188,0.0002425,30]
[349699971,1737383433627,-9975.90516896,0.0002425,30]
[349699972,1737383433639,-36241.617258,0.0002425,30]
[349699973,1737383433652,-477.58602924,0.0002425,30]
[349699974,1737383433664,-922.16575966,0.0002425,30]
[349699975,1737383433676,-26705.05643816,0.0002425,30]
[349699987,1737383438029,-1783.398,0.00024011,2]
[349699988,1737383438066,-1752.50082199,0.00024011,2]
[349699989,1737383438077,-7674.05839808,0.0002425,30]
[349699990,1737383438188,-8262.00622652,0.0002425,30]
[349700064,1737383440567,-6033.96479825,0.0002425,30]
[349700220,1737383443018,-430.19,0.000228,2]